fUSD/lending_fUSD_20260621
["ID","MTS","AMOUNT","RATE_DAILY","PERIOD"]
[425923935,1782036663000,-500.0,0.00028219,2]
[425923921,1782036663000,-500.0,0.00028219,2]
[425923917,1782036663000,-500.0,0.00028219,2]
[425923918,1782036663000,-500.0,0.00028219,2]
[425923920,1782036663000,-686.88,0.00028219,2]
[425923919,1782036663000,-500.0,0.00028219,2]
[425923916,1782036663000,-500.0,0.00028219,2]
[425923939,1782036663000,-500.0,0.00028219,2]
[425923938,1782036663000,-500.0,0.00028219,2]
[425923946,1782036663000,-592.75,0.00028219,2]
[425923932,1782036663000,-500.0,0.00028219,2]
[425923930,1782036663000,-500.0,0.00028219,2]
[425923931,1782036663000,-500.0,0.00028219,2]
[425923933,1782036663000,-635.0,0.00028219,2]
[425923948,1782036663000,-500.0,0.00028219,2]
[425923953,1782036663000,-500.0,0.00028219,2]
[425923943,1782036663000,-500.0,0.00028219,2]
[425923942,1782036663000,-175.10160676,0.00028219,2]
[425923944,1782036663000,-500.0,0.00028219,2]
[425923940,1782036663000,-500.0,0.00028219,2]
[425923941,1782036663000,-622.05,0.00028219,2]
[425923945,1782036663000,-500.0,0.00028219,2]
[425923914,1782036663000,-500.0,0.00028219,2]
[425923928,1782036663000,-500.0,0.00028219,2]
[425923922,1782036663000,-500.0,0.00028219,2]
[425923952,1782036663000,-500.0,0.00028219,2]
[425923926,1782036663000,-500.0,0.00028219,2]
[425923891,1782036663000,-398.19353032,0.00028219,2]
[425923947,1782036663000,-579.9771124,0.00028219,2]
[425923895,1782036663000,-500.0,0.00028219,2]
[425923892,1782036663000,-500.0,0.00028219,2]
[425923899,1782036663000,-500.0,0.00028219,2]
[425923889,1782036663000,-500.0,0.00028219,2]
[425923900,1782036663000,-500.0,0.00028219,2]
[425923896,1782036663000,-500.0,0.00028219,2]
[425923890,1782036663000,-500.0,0.00028219,2]
[425923893,1782036663000,-500.0,0.00028219,2]
[425923897,1782036663000,-500.0,0.00028219,2]
[425923898,1782036663000,-845.41,0.00028219,2]
[425923913,1782036663000,-500.0,0.00028219,2]
[425923925,1782036663000,-500.0,0.00028219,2]
[425923912,1782036663000,-500.0,0.00028219,2]
[425923903,1782036663000,-500.0,0.00028219,2]
[425923906,1782036663000,-500.0,0.00028219,2]
[425923901,1782036663000,-500.0,0.00028219,2]
[425923904,1782036663000,-570.4435564,0.00028219,2]
[425923905,1782036663000,-583.47,0.00028219,2]
[425923911,1782036663000,-500.0,0.00028219,2]
[425923908,1782036663000,-561.51,0.00028219,2]
[425923910,1782036663000,-500.0,0.00028219,2]
[425923909,1782036663000,-500.0,0.00028219,2]
[425923907,1782036663000,-500.0,0.00028219,2]
[425923923,1782036663000,-500.0,0.00028219,2]
[425923915,1782036663000,-500.0,0.00028219,2]
[425923924,1782036663000,-768.15,0.00028219,2]
[425923902,1782036663000,-500.0,0.00028219,2]
[425923894,1782036663000,-500.0,0.00028219,2]
[425923966,1782036663000,-779.55,0.00028219,2]
[425923951,1782036663000,-500.0,0.00028219,2]
[425923981,1782036663000,-910.29,0.00028219,2]
[425923988,1782036663000,-500.0,0.00028219,2]
[425923987,1782036663000,-500.0,0.00028219,2]
[425923985,1782036663000,-500.0,0.00028219,2]
[425923992,1782036663000,-500.0,0.00028219,2]
[425923995,1782036663000,-598.45,0.00028219,2]
[425923990,1782036663000,-500.0,0.00028219,2]
[425923993,1782036663000,-500.0,0.00028219,2]
[425923994,1782036663000,-500.0,0.00028219,2]
[425923991,1782036663000,-383.51892082,0.00028219,2]
[425923950,1782036663000,-1360.88,0.00028219,2]
[425923997,1782036663000,-500.0,0.00028219,2]
[425924001,1782036663000,-947.58,0.00028219,2]
[425923984,1782036663000,-500.0,0.00028219,2]
[425923996,1782036663000,-974.4,0.00028219,2]
[425923999,1782036663000,-500.0,0.00028219,2]
[425924002,1782036663000,-500.0,0.00028219,2]
[425924003,1782036663000,-500.0,0.00028219,2]
[425924004,1782036663000,-509.77,0.00028219,2]
[425924009,1782036663000,-500.0,0.00028219,2]
[425924012,1782036663000,-622.45079683,0.00028219,2]
[425924007,1782036663000,-500.0,0.00028219,2]
[425924008,1782036663000,-500.0,0.00028219,2]
[425924005,1782036663000,-1097.22,0.00028219,2]
[425924006,1782036663000,-500.0,0.00028219,2]
[425924011,1782036663000,-500.0,0.00028219,2]
[425924013,1782036663000,-500.0,0.00028219,2]
[425924010,1782036663000,-500.0,0.00028219,2]
[425924000,1782036663000,-1321.35,0.00028219,2]
[425923986,1782036663000,-500.0,0.00028219,2]
[425923998,1782036663000,-500.0,0.00028219,2]
[425923982,1782036663000,-500.0,0.00028219,2]
[425923949,1782036663000,-500.0,0.00028219,2]
[425923983,1782036663000,-500.0,0.00028219,2]
[425923955,1782036663000,-1235.09,0.00028219,2]
[425923954,1782036663000,-500.0,0.00028219,2]
[425923965,1782036663000,-684.54,0.00028219,2]
[425923960,1782036663000,-500.0,0.00028219,2]
[425923962,1782036663000,-500.0,0.00028219,2]
[425923964,1782036663000,-500.0,0.00028219,2]
[425923957,1782036663000,-500.0,0.00028219,2]
[425923959,1782036663000,-500.0,0.00028219,2]
[425923961,1782036663000,-500.0,0.00028219,2]
[425923958,1782036663000,-500.0,0.00028219,2]
[425923963,1782036663000,-500.0,0.00028219,2]
[425923968,1782036663000,-653.61,0.00028219,2]
[425923956,1782036663000,-770.0,0.00028219,2]
[425923980,1782036663000,-500.0,0.00028219,2]
[425923978,1782036663000,-500.0,0.00028219,2]
[425923989,1782036663000,-763.08,0.00028219,2]
[425923979,1782036663000,-500.0,0.00028219,2]
[425923969,1782036663000,-500.0,0.00028219,2]
[425923972,1782036663000,-503.72,0.00028219,2]
[425923974,1782036663000,-2356.71,0.00028219,2]
[425923971,1782036663000,-500.0,0.00028219,2]
[425923975,1782036663000,-500.0,0.00028219,2]
[425923970,1782036663000,-500.0,0.00028219,2]
[425923977,1782036663000,-1253.56,0.00028219,2]
[425923976,1782036663000,-226.86662039,0.00028219,2]
[425923973,1782036663000,-500.0,0.00028219,2]
[425923967,1782036663000,-638.76,0.00028219,2]
[425924054,1782036664000,-648.35,0.00028219,2]
[425924058,1782036664000,-500.0,0.00028219,2]
[425924057,1782036664000,-500.0,0.00028219,2]
[425924051,1782036664000,-951.62,0.00028219,2]
[425924049,1782036664000,-935.79,0.00028219,2]
[425924043,1782036664000,-1933.49,0.00028219,2]
[425924050,1782036664000,-500.0,0.00028219,2]
[425924044,1782036664000,-5268.44,0.00028219,2]
[425924045,1782036664000,-500.0,0.00028219,2]
[425924041,1782036664000,-500.0,0.00028219,2]
[425924053,1782036664000,-4809.24,0.00028219,2]
[425924048,1782036664000,-4806.58,0.00028219,2]
[425924059,1782036664000,-500.0,0.00028219,2]
[425924062,1782036664000,-500.0,0.00028219,2]
[425924055,1782036664000,-500.0,0.00028219,2]
[425924052,1782036664000,-500.0,0.00028219,2]
[425924071,1782036664000,-500.0,0.00028219,2]
[425924070,1782036664000,-500.0,0.00028219,2]
[425924061,1782036664000,-500.0,0.00028219,2]
[425924069,1782036664000,-500.0,0.00028219,2]
[425924060,1782036664000,-500.0,0.00028219,2]
[425924063,1782036664000,-500.0,0.00028219,2]
[425924064,1782036664000,-500.0,0.00028219,2]
[425924067,1782036664000,-500.0,0.00028219,2]
[425924066,1782036664000,-643.8,0.00028219,2]
[425924065,1782036664000,-500.0,0.00028219,2]
[425924056,1782036664000,-4567.55,0.00028219,2]
[425924040,1782036664000,-969.73,0.00028219,2]
[425924068,1782036664000,-500.0,0.00028219,2]
[425924047,1782036664000,-1119.73,0.00028219,2]
[425924015,1782036664000,-500.0,0.00028219,2]
[425924014,1782036664000,-500.0,0.00028219,2]
[425924016,1782036664000,-500.0,0.00028219,2]
[425924023,1782036664000,-308.78079043,0.00028219,2]
[425924022,1782036664000,-500.0,0.00028219,2]
[425924017,1782036664000,-500.0,0.00028219,2]
[425924018,1782036664000,-500.0,0.00028219,2]
[425924020,1782036664000,-500.0,0.00028219,2]
[425924021,1782036664000,-500.0,0.00028219,2]
[425924019,1782036664000,-500.0,0.00028219,2]
[425924024,1782036664000,-500.0,0.00028219,2]
[425924026,1782036664000,-500.0,0.00028219,2]
[425924028,1782036664000,-956.37,0.00028219,2]
[425924027,1782036664000,-500.0,0.00028219,2]
[425924029,1782036664000,-500.0,0.00028219,2]
[425924030,1782036664000,-675.07,0.00028219,2]
[425924034,1782036664000,-849.95,0.00028219,2]
[425924032,1782036664000,-500.0,0.00028219,2]
[425924033,1782036664000,-3565.25,0.00028219,2]
[425924036,1782036664000,-559.83,0.00028219,2]
[425924025,1782036664000,-1273.89,0.00028219,2]
[425924031,1782036664000,-500.0,0.00028219,2]
[425924035,1782036664000,-384.46019677,0.00028219,2]
[425924038,1782036664000,-500.0,0.00028219,2]
[425924039,1782036664000,-3216.01,0.00028219,2]
[425924037,1782036664000,-500.0,0.00028219,2]
[425924042,1782036664000,-834.65,0.00028219,2]
[425924046,1782036664000,-524.63,0.00028219,2]
[425924074,1782036664000,-500.0,0.00028219,2]
[425924105,1782036664000,-500.0,0.00028219,2]
[425924076,1782036664000,-322.24125787,0.00028219,2]
[425924103,1782036664000,-500.0,0.00028219,2]
[425924128,1782036664000,-500.0,0.00028219,2]
[425924109,1782036664000,-500.0,0.00028219,2]
[425924119,1782036664000,-500.0,0.00028219,2]
[425924108,1782036664000,-172.91441035,0.00028219,2]
[425924120,1782036664000,-500.0,0.00028219,2]
[425924110,1782036664000,-500.0,0.00028219,2]
[425924113,1782036664000,-500.0,0.00028219,2]
[425924111,1782036664000,-500.0,0.00028219,2]
[425924118,1782036664000,-500.0,0.00028219,2]
[425924115,1782036664000,-500.0,0.00028219,2]
[425924112,1782036664000,-6132.74,0.00028219,2]
[425924100,1782036664000,-500.0,0.00028219,2]
[425924117,1782036664000,-500.0,0.00028219,2]
[425924121,1782036664000,-500.0,0.00028219,2]
[425924123,1782036664000,-500.78,0.00028219,2]
[425924124,1782036664000,-500.0,0.00028219,2]
[425924125,1782036664000,-500.0,0.00028219,2]
[425924122,1782036664000,-500.0,0.00028219,2]
[425924130,1782036664000,-500.0,0.00028219,2]
[425924126,1782036664000,-500.0,0.00028219,2]
[425924131,1782036664000,-500.0,0.00028219,2]
[425924132,1782036664000,-500.0,0.00028219,2]
[425924129,1782036664000,-500.0,0.00028219,2]
[425924127,1782036664000,-500.0,0.00028219,2]
[425924072,1782036664000,-500.0,0.00028219,2]
[425924114,1782036664000,-500.0,0.00028219,2]
[425924104,1782036664000,-500.0,0.00028219,2]
[425924116,1782036664000,-500.0,0.00028219,2]
[425924106,1782036664000,-500.0,0.00028219,2]
[425924101,1782036664000,-500.0,0.00028219,2]
[425924077,1782036664000,-500.0,0.00028219,2]
[425924075,1782036664000,-500.0,0.00028219,2]
[425924083,1782036664000,-835.73,0.00028219,2]
[425924080,1782036664000,-605.3865617,0.00028219,2]
[425924081,1782036664000,-563.13855028,0.00028219,2]
[425924079,1782036664000,-500.0,0.00028219,2]
[425924082,1782036664000,-500.0,0.00028219,2]
[425924078,1782036664000,-500.0,0.00028219,2]
[425924085,1782036664000,-500.0,0.00028219,2]
[425924095,1782036664000,-500.0,0.00028219,2]
[425924084,1782036664000,-500.0,0.00028219,2]
[425924086,1782036664000,-500.0,0.00028219,2]
[425924089,1782036664000,-918.31,0.00028219,2]
[425924073,1782036664000,-500.0,0.00028219,2]
[425924099,1782036664000,-264.83997216,0.00028219,2]
[425924088,1782036664000,-500.0,0.00028219,2]
[425924092,1782036664000,-500.0,0.00028219,2]
[425924094,1782036664000,-500.0,0.00028219,2]
[425924093,1782036664000,-500.0,0.00028219,2]
[425924090,1782036664000,-2467.13,0.00028219,2]
[425924091,1782036664000,-306.43226938,0.00028219,2]
[425924097,1782036664000,-500.0,0.00028219,2]
[425924096,1782036664000,-500.0,0.00028219,2]
[425924087,1782036664000,-202.03523397,0.00028219,2]
[425924098,1782036664000,-500.0,0.00028219,2]
[425924102,1782036664000,-500.0,0.00028219,2]
[425924107,1782036664000,-500.0,0.00028219,2]
[425924173,1782036665000,-500.0,0.00028219,2]
[425924170,1782036665000,-500.0,0.00028219,2]
[425924158,1782036665000,-8344.59,0.00028219,2]
[425924175,1782036665000,-529.95,0.00028219,2]
[425924177,1782036665000,-500.0,0.00028219,2]
[425924174,1782036665000,-151.0,0.00028219,7]
[425924166,1782036665000,-500.0,0.00028219,2]
[425924167,1782036665000,-500.0,0.00028219,2]
[425924163,1782036665000,-544.03,0.00028219,2]
[425924168,1782036665000,-5549.57,0.00028219,2]
[425924164,1782036665000,-4234.92,0.00028219,2]
[425924172,1782036665000,-11591.31,0.00028219,2]
[425924176,1782036665000,-500.0,0.00028219,2]
[425924171,1782036665000,-151.0,0.00028219,7]
[425924183,1782036665000,-352.92972669,0.00028219,2]
[425924178,1782036665000,-151.0,0.00028219,7]
[425924180,1782036665000,-1121.32,0.00028219,2]
[425924179,1782036665000,-500.0,0.00028219,2]
[425924191,1782036665000,-500.0,0.00028219,2]
[425924194,1782036665000,-500.0,0.00028219,2]
[425924187,1782036665000,-508.58,0.00028219,2]
[425924184,1782036665000,-560.95,0.00028219,2]
[425924182,1782036665000,-500.0,0.00028219,2]
[425924188,1782036665000,-367.84111927,0.00028219,2]
[425924192,1782036665000,-500.0,0.00028219,2]
[425924195,1782036665000,-4407.46,0.00028219,2]
[425924185,1782036665000,-500.0,0.00028219,2]
[425924181,1782036665000,-737.59,0.00028219,2]
[425924160,1782036665000,-4904.56,0.00028219,2]
[425924133,1782036665000,-500.0,0.00028219,2]
[425924165,1782036665000,-500.0,0.00028219,2]
[425924189,1782036665000,-500.0,0.00028219,2]
[425924135,1782036665000,-500.0,0.00028219,2]
[425924145,1782036665000,-289.33,0.00028219,2]
[425924136,1782036665000,-500.0,0.00028219,2]
[425924134,1782036665000,-500.0,0.00028219,2]
[425924140,1782036665000,-637.81,0.00028219,2]
[425924137,1782036665000,-500.0,0.00028219,2]
[425924139,1782036665000,-602.27,0.00028219,2]
[425924142,1782036665000,-500.0,0.00028219,2]
[425924141,1782036665000,-547.19,0.00028219,2]
[425924138,1782036665000,-547.39,0.00028219,2]
[425924143,1782036665000,-500.0,0.00028219,2]
[425924144,1782036665000,-500.0,0.00028219,2]
[425924161,1782036665000,-500.0,0.00028219,2]
[425924146,1782036665000,-500.0,0.00028219,2]
[425924157,1782036665000,-589.86,0.00028219,2]
[425924149,1782036665000,-500.0,0.00028219,2]
[425924147,1782036665000,-500.0,0.00028219,2]
[425924155,1782036665000,-4513.58,0.00028219,2]
[425924154,1782036665000,-500.0,0.00028219,2]
[425924152,1782036665000,-8596.43,0.00028219,2]
[425924151,1782036665000,-500.0,0.00028219,2]
[425924150,1782036665000,-782.44,0.00028219,2]
[425924153,1782036665000,-500.0,0.00028219,2]
[425924148,1782036665000,-500.0,0.00028219,2]
[425924169,1782036665000,-4142.16,0.00028219,2]
[425924159,1782036665000,-500.0,0.00028219,2]
[425924162,1782036665000,-518.81,0.00028219,2]
[425924156,1782036665000,-741.55,0.00028219,2]
[425924186,1782036665000,-3462.02,0.00028219,2]
[425924201,1782036665000,-4920.34,0.00028219,2]
[425924190,1782036665000,-500.0,0.00028219,2]
[425924231,1782036665000,-574.59,0.00028219,2]
[425924230,1782036665000,-904.85,0.00028219,2]
[425924228,1782036665000,-7006.76,0.00028219,2]
[425924232,1782036665000,-500.0,0.00028219,2]
[425924223,1782036665000,-4116.89,0.00028219,2]
[425924234,1782036665000,-513.04,0.00028219,2]
[425924236,1782036665000,-2754.08,0.00028219,2]
[425924246,1782036665000,-500.0,0.00028219,2]
[425924238,1782036665000,-500.0,0.00028219,2]
[425924237,1782036665000,-500.0,0.00028219,2]
[425924235,1782036665000,-500.0,0.00028219,2]
[425924239,1782036665000,-6967.46,0.00028219,2]
[425924240,1782036665000,-500.0,0.00028219,2]
[425924225,1782036665000,-500.0,0.00028219,2]
[425924243,1782036665000,-58770.661065,0.00028219,2]
[425924245,1782036665000,-500.0,0.00028219,2]
[425924241,1782036665000,-673.1,0.00028219,2]
[425924244,1782036665000,-913.0,0.00028219,2]
[425924247,1782036665000,-500.0,0.00028219,2]
[425924193,1782036665000,-503.69,0.00028219,2]
[425924248,1782036665000,-2177.43,0.00028219,2]
[425924250,1782036665000,-2750.97,0.00028219,2]
[425924254,1782036665000,-500.0,0.00028219,2]
[425924256,1782036665000,-10370.49,0.00028219,2]
[425924253,1782036665000,-500.0,0.00028219,2]
[425924249,1782036665000,-500.0,0.00028219,2]
[425924252,1782036665000,-7308.09,0.00028219,2]
[425924255,1782036665000,-6610.19,0.00028219,2]
[425924242,1782036665000,-4469.05,0.00028219,2]
[425924226,1782036665000,-3648.64,0.00028219,2]
[425924251,1782036665000,-333.64757059,0.00028219,2]
[425924229,1782036665000,-3690.26,0.00028219,2]
[425924200,1782036665000,-752.17,0.00028219,2]
[425924206,1782036665000,-8802.4,0.00028219,2]
[425924208,1782036665000,-500.0,0.00028219,2]
[425924196,1782036665000,-4893.3,0.00028219,2]
[425924205,1782036665000,-504.3,0.00028219,2]
[425924199,1782036665000,-614.43,0.00028219,2]
[425924207,1782036665000,-3641.08,0.00028219,2]
[425924198,1782036665000,-500.0,0.00028219,2]
[425924202,1782036665000,-500.0,0.00028219,2]
[425924224,1782036665000,-793.21,0.00028219,2]
[425924204,1782036665000,-6191.78,0.00028219,2]
[425924203,1782036665000,-500.0,0.00028219,2]
[425924210,1782036665000,-500.0,0.00028219,2]
[425924209,1782036665000,-1000.0,0.00028219,2]
[425924197,1782036665000,-7434.82,0.00028219,2]
[425924217,1782036665000,-3642.96,0.00028219,2]
[425924233,1782036665000,-694.24,0.00028219,2]
[425924212,1782036665000,-8686.83,0.00028219,2]
[425924222,1782036665000,-1130.75,0.00028219,2]
[425924218,1782036665000,-500.0,0.00028219,2]
[425924219,1782036665000,-9537.38,0.00028219,2]
[425924214,1782036665000,-500.0,0.00028219,2]
[425924227,1782036665000,-499.70084309,0.00028219,2]
[425924216,1782036665000,-15685.64,0.00028219,2]
[425924211,1782036665000,-500.0,0.00028219,2]
[425924220,1782036665000,-9148.39,0.00028219,2]
[425924221,1782036665000,-762.22,0.00028219,2]
[425924215,1782036665000,-500.0,0.00028219,2]
[425924213,1782036665000,-500.0,0.00028219,2]
[425924281,1782036666000,-200.0,0.00028299,2]
[425924282,1782036666000,-200.0,0.00028299,2]
[425924280,1782036666000,-200.0,0.00028299,2]
[425924285,1782036666000,-200.0,0.00028299,2]
[425924286,1782036666000,-200.0,0.00028299,2]
[425924287,1782036666000,-200.0,0.00028299,2]
[425924288,1782036666000,-200.0,0.00028299,2]
[425924290,1782036666000,-200.0,0.00028299,2]
[425924292,1782036666000,-200.0,0.00028299,2]
[425924300,1782036666000,-200.0,0.00028299,2]
[425924293,1782036666000,-200.0,0.00028299,2]
[425924295,1782036666000,-200.0,0.00028299,2]
[425924289,1782036666000,-200.0,0.00028299,2]
[425924294,1782036666000,-200.0,0.00028299,2]
[425924291,1782036666000,-200.0,0.00028299,2]
[425924298,1782036666000,-200.0,0.00028299,2]
[425924297,1782036666000,-200.0,0.00028299,2]
[425924299,1782036666000,-200.0,0.00028299,2]
[425924283,1782036666000,-200.0,0.00028299,2]
[425924296,1782036666000,-200.0,0.00028299,2]
[425924284,1782036666000,-200.0,0.00028299,2]
[425924266,1782036666000,-500.0,0.00028219,2]
[425924277,1782036666000,-200.0,0.00028299,2]
[425924301,1782036666000,-200.0,0.00028299,2]
[425924259,1782036666000,-3409.76,0.00028219,2]
[425924258,1782036666000,-500.0,0.00028219,2]
[425924257,1782036666000,-500.0,0.00028219,2]
[425924260,1782036666000,-500.0,0.00028219,2]
[425924261,1782036666000,-578.58,0.00028219,2]
[425924263,1782036666000,-5168.02,0.00028219,2]
[425924262,1782036666000,-2245.52,0.00028219,2]
[425924264,1782036666000,-500.0,0.00028219,2]
[425924270,1782036666000,-200.0,0.00028299,2]
[425924269,1782036666000,-211.9,0.00028267,2]
[425924268,1782036666000,-500.0,0.00028219,2]
[425924265,1782036666000,-1012.47,0.00028219,2]
[425924267,1782036666000,-500.0,0.00028219,2]
[425924271,1782036666000,-200.0,0.00028299,2]
[425924273,1782036666000,-200.0,0.00028299,2]
[425924272,1782036666000,-200.0,0.00028299,2]
[425924274,1782036666000,-200.0,0.00028299,2]
[425924275,1782036666000,-200.0,0.00028299,2]
[425924276,1782036666000,-200.0,0.00028299,2]
[425924279,1782036666000,-200.0,0.00028299,2]
[425924278,1782036666000,-200.0,0.00028299,2]
[425924303,1782036666000,-200.0,0.00028299,2]
[425924323,1782036666000,-500.0,0.00028299,2]
[425924302,1782036666000,-200.0,0.00028299,2]
[425924331,1782036666000,-156.84738482,0.0002835,2]
[425924333,1782036666000,-150.72,0.00028424,2]
[425924332,1782036666000,-227.00215484,0.00028397,7]
[425924335,1782036666000,-328.69924039,0.00028483,2]
[425924334,1782036666000,-152.25,0.00028426,2]
[425924340,1782036666000,-735.98,0.00028492,2]
[425924339,1782036666000,-735.98,0.00028492,2]
[425924336,1782036666000,-1428.58,0.00028492,2]
[425924337,1782036666000,-1428.58,0.00028492,2]
[425924329,1782036666000,-472.74,0.00028331,30]
[425924338,1782036666000,-1428.58,0.00028492,2]
[425924341,1782036666000,-500.0,0.00028493,2]
[425924343,1782036666000,-500.0,0.00028493,2]
[425924345,1782036666000,-500.0,0.00028493,2]
[425924344,1782036666000,-500.0,0.00028493,2]
[425924350,1782036666000,-500.0,0.00028493,2]
[425924349,1782036666000,-500.0,0.00028493,2]
[425924348,1782036666000,-500.0,0.00028493,2]
[425924346,1782036666000,-500.0,0.00028493,2]
[425924304,1782036666000,-200.0,0.00028299,2]
[425924342,1782036666000,-500.0,0.00028493,2]
[425924328,1782036666000,-265.36,0.00028328,30]
[425924347,1782036666000,-500.0,0.00028493,2]
[425924326,1782036666000,-187.32,0.0002832,30]
[425924327,1782036666000,-307.54,0.00028324,30]
[425924307,1782036666000,-181.0,0.00028299,2]
[425924305,1782036666000,-200.0,0.00028299,2]
[425924308,1782036666000,-500.0,0.00028299,2]
[425924310,1782036666000,-500.0,0.00028299,2]
[425924312,1782036666000,-500.0,0.00028299,2]
[425924316,1782036666000,-500.0,0.00028299,2]
[425924317,1782036666000,-500.0,0.00028299,2]
[425924309,1782036666000,-500.0,0.00028299,2]
[425924314,1782036666000,-500.0,0.00028299,2]
[425924306,1782036666000,-200.0,0.00028299,2]
[425924319,1782036666000,-500.0,0.00028299,2]
[425924315,1782036666000,-500.0,0.00028299,2]
[425924322,1782036666000,-500.0,0.00028299,2]
[425924324,1782036666000,-591.0,0.00028299,2]
[425924321,1782036666000,-500.0,0.00028299,2]
[425924320,1782036666000,-500.0,0.00028299,2]
[425924313,1782036666000,-500.0,0.00028299,2]
[425924318,1782036666000,-500.0,0.00028299,2]
[425924311,1782036666000,-500.0,0.00028299,2]
[425924330,1782036666000,-587.36,0.00028334,30]
[425924325,1782036666000,-176.08,0.00028316,30]
[425924371,1782036667000,-500.0,0.00028493,2]
[425924372,1782036667000,-500.0,0.00028493,2]
[425924386,1782036667000,-500.0,0.00028493,2]
[425924373,1782036667000,-500.0,0.00028493,2]
[425924376,1782036667000,-500.0,0.00028493,2]
[425924374,1782036667000,-500.0,0.00028493,2]
[425924375,1782036667000,-500.0,0.00028493,2]
[425924377,1782036667000,-1089.19,0.00028493,2]
[425924380,1782036667000,-500.0,0.00028493,2]
[425924382,1782036667000,-500.0,0.00028493,2]
[425924379,1782036667000,-500.0,0.00028493,2]
[425924383,1782036667000,-500.0,0.00028493,2]
[425924387,1782036667000,-500.0,0.00028493,2]
[425924390,1782036667000,-500.0,0.00028493,2]
[425924367,1782036667000,-550.18,0.00028493,2]
[425924391,1782036667000,-877.63,0.00028493,2]
[425924388,1782036667000,-500.0,0.00028493,2]
[425924370,1782036667000,-500.0,0.00028493,2]
[425924357,1782036667000,-500.0,0.00028493,2]
[425924368,1782036667000,-500.0,0.00028493,2]
[425924381,1782036667000,-500.0,0.00028493,2]
[425924353,1782036667000,-500.0,0.00028493,2]
[425924354,1782036667000,-500.0,0.00028493,2]
[425924351,1782036667000,-500.0,0.00028493,2]
[425924352,1782036667000,-662.54,0.00028493,2]
[425924356,1782036667000,-500.0,0.00028493,2]
[425924366,1782036667000,-500.0,0.00028493,2]
[425924359,1782036667000,-1087.51,0.00028493,2]
[425924355,1782036667000,-500.0,0.00028493,2]
[425924358,1782036667000,-500.0,0.00028493,2]
[425924364,1782036667000,-500.0,0.00028493,2]
[425924361,1782036667000,-500.0,0.00028493,2]
[425924362,1782036667000,-221.58393007,0.00028493,2]
[425924363,1782036667000,-543.45,0.00028493,2]
[425924360,1782036667000,-260.086236,0.00028493,2]
[425924365,1782036667000,-500.0,0.00028493,2]
[425924369,1782036667000,-500.0,0.00028493,2]
[425924378,1782036667000,-500.0,0.00028493,2]
[425924389,1782036667000,-500.0,0.00028493,2]
[425924384,1782036667000,-837.02,0.00028493,2]
[425924393,1782036667000,-500.0,0.00028493,2]
[425924424,1782036667000,-500.0,0.00028493,2]
[425924415,1782036667000,-500.0,0.00028493,2]